bitfinex/quotes_SOLUSD_20250718
["timestamp","ask_amount","ask_price","bid_price","bid_amount"]
[1752843968332,29.92,179.49,179.46,14.16585109]
[1752843968541,29.92,179.49,179.45,0.67]
[1752843968730,13.92029197,179.6,179.48,14.16585109]
[1752843968925,0.69,179.54,179.5,14.16585109]
[1752843969132,0.69,179.57,179.53,14.16585109]
[1752843969456,0.69,179.56,179.52,14.16585109]
[1752843969635,14.85585109,179.55,179.5,14.16585109]
[1752843969828,14.85585109,179.54,179.49,5.57134102]
[1752843970162,30.61,179.54,179.5,14.16585109]
[1752843970348,44.08585109,179.54,179.49,14.16585109]
[1752843970551,14.16585109,179.5,179.46,1.6442]
[1752843970757,14.16585109,179.5,179.45,14.16585109]
[1752843970942,14.16585109,179.51,179.46,19.73812346]
[1752843971246,29.94,179.52,179.47,14.16585109]
[1752843971247,44.10585109,179.52,179.47,14.16585109]
[1752843971424,14.16585109,179.51,179.46,14.83585109]
[1752843971959,14.85585109,179.51,179.45,19.73834628]
[1752843972140,14.16585109,179.47,179.41,14.32015564]
[1752843972340,0.69,179.48,179.41,27.81600673]
[1752843972647,14.16585109,179.47,179.41,27.81600673]
[1752843972957,14.16585109,179.45,179.4,19.73993918]
[1752843973165,0.69,179.44,179.38,0.67]
[1752843973329,0.69,179.44,179.37,14.16585109]
[1752843973330,14.16585109,179.42,179.37,14.16585109]
[1752843973532,0.69,179.41,179.37,14.16585109]
[1752843973849,14.16585109,179.42,179.37,0.67]
[1752843974037,56.0,179.43,179.37,14.16585109]
[1752843974536,26.0,179.43,179.39,14.16585109]
[1752843974733,56.75,179.47,179.4,0.67]
[1752843975039,56.06,179.47,179.38,30.06]
[1752843975238,56.06,179.47,179.37,18.01219079]
[1752843975239,14.16585109,179.42,179.37,0.67]
[1752843975664,14.85585109,179.41,179.36,13.78041251]
[1752843976553,14.16585109,179.41,179.36,28.6162636]
[1752843976731,30.81,179.43,179.36,28.6162636]
[1752843976937,14.16585109,179.42,179.36,28.6162636]
[1752843977154,26.0,179.45,179.39,14.16585109]
[1752843977463,40.16585109,179.45,179.4,14.16585109]
[1752843977649,40.85585109,179.45,179.4,14.16585109]
[1752843978480,40.85585109,179.45,179.39,5.57444673]
[1752843978642,6.54057146,179.54,179.42,14.16585109]
[1752843978834,14.16585109,179.47,179.42,14.16585109]
[1752843979028,0.69,179.48,179.44,14.16585109]
[1752843979237,0.69,179.48,179.42,14.16585109]
[1752843979452,14.85585109,179.48,179.42,14.16585109]
[1752843979658,14.16585109,179.47,179.4,16.78468397]
[1752843980173,0.69,179.48,179.42,5.57346558]
[1752843980462,6.26168087,179.48,179.39,19.74017229]
[1752843980755,14.16585109,179.45,179.39,19.74017229]
[1752843980958,0.69,179.45,179.4,14.16585109]
[1752843981132,26.69,179.49,179.44,14.16585109]
[1752843981332,0.69,179.49,179.46,14.16585109]
[1752843981551,14.85585109,179.51,179.46,14.16585109]
[1752843981729,0.69,179.5,179.46,14.16585109]
[1752843982132,26.0,179.51,179.48,14.16585109]
[1752843982333,30.08,179.52,179.48,19.73743596]
[1752843982761,14.85585109,179.55,179.5,14.16585109]
[1752843982963,5.56889961,179.57,179.5,14.16585109]
[1752843983260,14.16585109,179.53,179.45,22.88048397]
[1752843983461,0.69,179.52,179.47,14.16585109]
[1752843983649,0.69,179.51,179.47,14.16585109]
[1752843983955,26.0,179.55,179.47,14.16585109]
[1752843984163,5.56978946,179.54,179.47,14.16585109]
[1752843984378,40.16585109,179.51,179.46,14.16585109]
[1752843984549,14.82585109,179.5,179.45,14.16585109]
[1752843984733,0.66,179.49,179.45,14.16585109]
[1752843985160,14.16585109,179.5,179.43,5.57310774]
[1752843985457,30.06,179.52,179.4,5.57391885]
[1752843985458,14.16585109,179.44,179.4,5.57391885]
[1752843985636,0.66,179.44,179.4,5.57391885]
[1752843985832,0.66,179.44,179.4,14.16585109]
[1752843986065,0.66,179.44,179.4,19.73993053]
[1752843986443,0.66,179.44,179.38,16.78468397]
[1752843986644,14.82585109,179.44,179.39,19.74027883]
[1752843986958,0.66,179.44,179.4,14.16585109]
[1752843987473,14.16585109,179.45,179.39,5.57442774]
[1752843987765,14.16585109,179.45,179.4,14.16585109]
[1752843987951,26.66,179.46,179.41,14.16585109]
[1752843988152,40.16585109,179.46,179.41,14.85585109]
[1752843988355,40.16585109,179.46,179.41,20.42964658]
[1752843988552,0.66,179.45,179.41,5.57379549]
[1752843988873,40.82585109,179.48,179.42,0.69]
[1752843989052,30.08,179.5,179.46,14.16585109]
[1752843989260,30.08,179.5,179.45,14.16585109]
[1752843989453,20.39658315,179.51,179.46,14.16585109]
[1752843989666,0.66,179.5,179.46,14.16585109]
[1752843989869,40.82585109,179.52,179.47,14.16585109]
[1752843990204,40.82585109,179.52,179.44,0.69]
[1752843990205,40.82585109,179.52,179.44,2.3053]
[1752843990353,26.66,179.52,179.48,19.73747037]
[1752843990551,26.0,179.51,179.48,19.73747037]
[1752843990754,0.66,179.56,179.5,14.16585109]
[1752843990950,26.0,179.55,179.51,14.16585109]
[1752843991154,0.66,179.55,179.51,14.16585109]
[1752843991691,0.66,179.55,179.49,0.69]
[1752843991858,0.66,179.55,179.51,14.16585109]
[1752843992175,30.72,179.58,179.53,14.16585109]
[1752843992364,56.72,179.58,179.54,14.16585109]
[1752843992548,0.66,179.58,179.55,14.16585109]
[1752843992750,44.88585109,179.61,179.56,14.16585109]
[1752843992977,14.16585109,179.6,179.53,0.69]
[1752843993150,0.66,179.6,179.56,14.16585109]
[1752843993348,0.66,179.59,179.56,14.16585109]
[1752843993750,0.66,179.62,179.56,14.16585109]
[1752843993944,14.82585109,179.62,179.54,0.69]
[1752843994149,0.66,179.61,179.55,14.16585109]
[1752843994372,14.82585109,179.61,179.56,14.16585109]
[1752843994572,0.66,179.6,179.56,14.16585109]
[1752843994988,26.0,179.62,179.58,21.43404339]
[1752843995210,0.66,179.61,179.53,5.5700997]
[1752843995473,35.17006841,179.63,179.54,0.69]
[1752843995978,26.0,179.62,179.54,0.69]
[1752843996278,47.43404339,179.62,179.54,0.69]
[1752843996649,47.43404339,179.62,179.55,5.56947925]
[1752843997262,26.0,179.62,179.56,0.69]
[1752843997667,13.73602502,179.63,179.6,21.43404339]
[1752843997875,13.07602502,179.63,179.61,21.43404339]
[1752843998058,13.07602502,179.63,179.62,21.43404339]
[1752843998765,0.06,179.65,179.62,21.43404339]
[1752843998963,0.06,179.65,179.61,21.43404339]
[1752843999182,0.66,179.64,179.59,5.56820361]
[1752843999392,0.66,179.63,179.6,21.43404339]
[1752843999557,21.49404339,179.65,179.61,21.43404339]
[1752843999558,0.06,179.65,179.61,21.43404339]
[1752843999758,0.72,179.65,179.62,21.43404339]
[1752843999954,0.06,179.65,179.63,21.43404339]
[1752844000188,0.06,179.65,179.64,21.43404339]
[1752844000491,0.06,179.65,179.63,21.43404339]
[1752844001362,0.06,179.65,179.64,21.43404339]
[1752844001583,0.06,179.65,179.63,21.43404339]
[1752844002108,0.06,179.65,179.6,22.35257752]
[1752844002401,0.06,179.65,179.62,21.43404339]
[1752844002402,0.72,179.65,179.62,21.43404339]
[1752844002909,0.06,179.65,179.63,21.43404339]
[1752844003285,0.06,179.65,179.62,0.69]
[1752844003484,0.06,179.65,179.63,21.43404339]
[1752844004201,0.06,179.65,179.62,21.43404339]
[1752844004795,0.06,179.65,179.63,21.43404339]
[1752844004987,0.06,179.65,179.61,6.25756479]
[1752844005175,0.72,179.65,179.6,5.56775088]
[1752844005376,22.09404339,179.64,179.59,21.43404339]
[1752844005578,0.66,179.63,179.57,57.02289109]
[1752844005883,0.66,179.63,179.55,43.47468397]
[1752844006075,0.66,179.63,179.55,0.69]
[1752844006380,21.43404339,179.62,179.54,7.6479]
[1752844006687,21.43404339,179.6,179.54,13.21761338]
[1752844006885,21.43404339,179.58,179.53,36.26000919]
[1752844007085,22.09404339,179.57,179.5,6.8539]
[1752844007290,0.66,179.57,179.51,21.43404339]
[1752844007483,0.66,179.57,179.51,27.00476368]
[1752844007679,22.09404339,179.57,179.52,21.43404339]
[1752844007891,30.04,179.59,179.51,5.57072029]
[1752844008091,30.04,179.59,179.53,0.69]
[1752844008092,51.47404339,179.59,179.53,0.69]
[1752844008303,51.47404339,179.59,179.54,21.43404339]
[1752844008628,21.43404339,179.56,179.51,5.57072029]
[1752844008924,22.09404339,179.55,179.5,5.57098594]
[1752844009276,22.09404339,179.55,179.5,27.00502933]
[1752844009480,0.66,179.54,179.5,27.00502933]
[1752844009702,5.56895404,179.57,179.51,21.43404339]
[1752844009703,21.43404339,179.56,179.51,21.43404339]
[1752844009907,21.43404339,179.55,179.5,6.26098594]
[1752844010211,22.09404339,179.55,179.5,27.69502933]
[1752844010393,0.66,179.55,179.5,27.00502933]
[1752844010595,0.66,179.55,179.51,21.43404339]
[1752844011102,22.09404339,179.55,179.5,21.43404339]
[1752844011408,0.66,179.54,179.5,21.43404339]
[1752844011783,0.66,179.53,179.48,27.00562672]
[1752844012003,22.09404339,179.53,179.48,27.00562672]
[1752844012201,22.09404339,179.53,179.47,58.602933]
[1752844013098,22.09404339,179.53,179.48,21.43404339]
[1752844013404,0.66,179.52,179.48,21.43404339]
[1752844013702,0.66,179.52,179.49,21.43404339]
[1752844013901,0.66,179.52,179.47,37.16888961]
[1752844013902,22.14404339,179.54,179.47,37.86888961]
[1752844014106,22.14404339,179.54,179.47,37.16888961]
[1752844014307,22.14404339,179.54,179.47,37.89888961]
[1752844014607,0.71,179.54,179.5,21.43404339]
[1752844014796,0.71,179.54,179.47,37.89888961]
[1752844014797,26.0,179.55,179.51,21.43404339]
[1752844015107,26.0,179.55,179.53,14.21489876]
[1752844015315,0.71,179.57,179.54,14.21489876]
[1752844015491,26.0,179.58,179.54,14.21489876]
[1752844015984,0.71,179.6,179.55,0.7]
[1752844016185,14.12160232,179.61,179.56,14.21489876]
[1752844016396,29.04650108,179.61,179.55,0.7]
[1752844016609,29.04650108,179.61,179.56,14.21489876]
[1752844016812,14.12160232,179.61,179.6,14.21489876]
[1752844017584,14.12160232,179.61,179.58,5.56854883]
[1752844017780,14.12160232,179.61,179.57,6.26880395]
[1752844018003,14.12160232,179.61,179.6,14.21489876]
[1752844018206,14.12160232,179.61,179.6,14.91489876]
[1752844018598,14.12160232,179.61,179.6,14.21489876]
[1752844019002,14.12160232,179.61,179.58,0.7]
[1752844019200,14.12160232,179.61,179.6,19.78282749]
[1752844019405,14.12160232,179.61,179.56,1.5173]
[1752844019609,14.12160232,179.61,179.59,14.21489876]
[1752844019790,14.12160232,179.61,179.6,14.21489876]
[1752844019990,14.12160232,179.61,179.6,0.7]
[1752844020203,14.12160232,179.61,179.6,14.21489876]
[1752844020605,14.12160232,179.61,179.6,14.91489876]
[1752844020916,14.12160232,179.61,179.59,14.21489876]
[1752844021414,14.12160232,179.61,179.58,14.21489876]
[1752844021720,14.12160232,179.61,179.56,1.5173]
[1752844021721,0.71,179.6,179.56,14.21489876]
[1752844022022,0.71,179.6,179.57,14.21489876]
[1752844023000,14.12160232,179.61,179.58,14.21489876]
[1752844023203,14.12160232,179.61,179.59,14.21489876]
[1752844023406,45.84129281,179.65,179.6,14.21489876]
[1752844023606,0.71,179.64,179.6,14.21489876]
[1752844024003,0.71,179.64,179.59,14.21489876]
[1752844024004,14.92489876,179.64,179.59,14.21489876]
[1752844024208,0.71,179.64,179.59,14.91489876]
[1752844024409,14.92489876,179.64,179.59,14.91489876]
[1752844024631,14.92489876,179.63,179.58,14.21489876]
[1752844024814,14.21489876,179.6,179.55,19.78435501]
[1752844024997,0.71,179.6,179.55,19.78435501]
[1752844025201,14.92489876,179.62,179.57,14.21489876]
[1752844025609,14.92489876,179.62,179.56,0.7]
[1752844025805,14.92489876,179.62,179.57,14.21489876]
[1752844026025,0.71,179.62,179.58,14.21489876]
[1752844026519,0.71,179.62,179.57,0.7]
[1752844026720,0.71,179.61,179.57,14.21489876]
[1752844027022,14.92489876,179.6,179.55,5.56947925]
[1752844027213,0.71,179.59,179.55,5.56947925]
[1752844027420,29.86,179.61,179.55,5.56947925]
[1752844027600,44.07489876,179.61,179.56,14.21489876]
[1752844027807,44.78489876,179.61,179.56,14.21489876]
[1752844028106,30.57,179.61,179.56,14.21489876]
[1752844028435,26.0,179.62,179.58,14.21489876]
[1752844028726,26.0,179.62,179.58,14.91489876]
[1752844029223,26.0,179.62,179.58,6.26832942]
[1752844029522,26.0,179.62,179.58,19.78322818]
[1752844029825,26.71,179.62,179.58,19.78322818]
[1752844030518,26.0,179.62,179.58,19.78322818]
[1752844030726,0.71,179.64,179.6,14.21489876]
[1752844031109,70.11489876,179.65,179.6,14.21489876]
[1752844031313,14.21489876,179.64,179.59,14.21489876]
[1752844031508,0.71,179.64,179.59,14.21489876]
[1752844031724,14.92489876,179.64,179.59,14.91489876]
[1752844032223,14.92489876,179.64,179.58,5.56832942]
[1752844032224,14.21489876,179.62,179.58,5.56832942]
[1752844032433,14.92489876,179.62,179.58,5.56832942]
[1752844032618,29.82,179.63,179.59,14.21489876]
[1752844033023,29.82,179.63,179.6,14.21489876]
[1752844033415,29.82,179.63,179.59,14.21489876]
[1752844033828,29.82,179.63,179.6,14.21489876]
[1752844034129,26.06,179.65,179.61,14.21489876]
[1752844034334,0.06,179.65,179.62,14.21489876]
[1752844034627,0.06,179.65,179.61,19.78243052]
[1752844034855,14.21489876,179.64,179.58,13.92137209]
[1752844035014,14.92489876,179.64,179.59,14.21489876]
[1752844035214,0.71,179.63,179.59,5.56823876]
[1752844035420,0.71,179.63,179.59,19.78313752]
[1752844036024,14.92489876,179.63,179.59,5.56823876]
[1752844036223,14.92489876,179.62,179.59,0.03]
[1752844036541,14.21489876,179.61,179.59,0.03]
[1752844036743,14.92489876,179.62,179.59,0.03]
[1752844037154,26.71,179.62,179.59,0.03]
[1752844037334,0.71,179.62,179.59,0.03]
[1752844038214,14.92489876,179.61,179.59,0.03]
[1752844038416,26.0,179.63,179.59,0.03]
[1752844038717,55.86,179.65,179.6,14.91489876]
[1752844038922,55.86,179.65,179.61,14.21489876]
[1752844039351,29.86,179.65,179.62,14.21489876]
[1752844039516,0.06,179.65,179.61,14.91489876]
[1752844040029,0.06,179.65,179.61,14.21489876]
[1752844040236,0.77,179.65,179.61,14.21489876]
[1752844040609,0.06,179.65,179.62,5.56730876]
[1752844040810,0.06,179.65,179.62,19.78220752]
[1752844041532,0.06,179.65,179.62,5.56730876]
[1752844041712,0.06,179.65,179.62,19.78220752]
[1752844042636,0.06,179.65,179.63,14.21489876]
[1752844042840,0.06,179.65,179.64,14.21489876]
[1752844043135,0.06,179.65,179.64,31.69958273]
[1752844044610,0.06,179.69,179.64,31.69958273]
[1752844044611,0.06,179.69,179.65,16.78468397]
[1752844044811,0.06,179.69,179.66,0.55660692]
[1752844045016,0.06,179.69,179.67,14.21489876]
[1752844045215,0.06,179.69,179.66,14.21489876]
[1752844045513,0.76,179.69,179.66,14.21489876]
[1752844045714,0.06,179.69,179.65,14.21489876]
[1752844045909,0.7,179.68,179.65,14.21489876]
[1752844046339,0.7,179.68,179.65,19.78112506]
[1752844046822,0.06,179.69,179.66,14.21489876]
[1752844047255,0.06,179.69,179.67,14.21489876]
[1752844047453,0.06,179.69,179.67,14.93489876]
[1752844047632,0.06,179.69,179.68,14.21489876]
[1752844048652,0.06,179.69,179.68,19.78034844]
[1752844050145,0.06,179.69,179.68,20.50034844]
[1752844050524,0.06,179.69,179.68,0.72]
[1752844050731,0.06,179.73,179.7,16.78468397]
[1752844051029,0.06,179.73,179.72,14.21489876]
[1752844051418,0.06,179.73,179.72,14.93489876]
[1752844051625,0.06,179.73,179.72,14.21489876]
[1752844053256,0.06,179.73,179.72,19.77910975]
[1752844054745,0.06,179.73,179.72,5.56421099]
[1752844054948,0.06,179.73,179.72,19.77910975]
[1752844055466,0.06,179.73,179.72,20.49910975]
[1752844057452,0.06,179.73,179.72,37.28379372]
[1752844058074,1e-08,179.73,179.72,37.28379372]
[1752844058359,120.22409,179.75,179.74,42.78468397]
[1752844058360,57.67083734,179.75,179.74,42.78468397]
[1752844058565,23.26644881,179.75,179.74,88.01594191]
[1752844058738,0.06,179.77,179.75,16.78468397]
[1752844058939,0.06,179.77,179.76,31.55588001]
[1752844059139,0.06,179.77,179.76,37.83885286]
[1752844059358,0.06,179.77,179.76,39.48005286]
[1752844059568,0.06,179.77,179.76,69.22005286]
[1752844060577,0.06,179.77,179.72,13.91052748]
[1752844060578,0.06,179.77,179.73,1.27639014]
[1752844060876,0.7,179.76,179.73,5.5639014]
[1752844061043,0.7,179.75,179.72,5.56416697]
[1752844061242,0.7,179.75,179.74,5.56359185]
[1752844061550,0.7,179.75,179.73,5.56385241]
[1752844061758,14.97489876,179.77,179.73,5.56385241]
[1752844061950,0.7,179.76,179.73,5.56385241]
[1752844062152,14.91489876,179.76,179.73,5.56385241]
[1752844062357,0.7,179.76,179.73,5.56385241]
[1752844062554,14.91489876,179.76,179.73,5.56385241]
[1752844062872,14.91489876,179.76,179.72,5.56414844]
[1752844063176,14.91489876,179.75,179.71,5.56446346]
[1752844063460,14.21489876,179.73,179.69,5.56484994]
[1752844063758,14.91489876,179.72,179.69,5.56484994]
[1752844063965,30.42,179.74,179.69,19.7797487]
[1752844064148,30.42,179.74,179.71,14.21489876]
[1752844064149,0.7,179.74,179.71,14.21489876]
[1752844064354,30.42,179.76,179.7,14.21489876]
[1752844064555,14.21489876,179.75,179.7,14.21489876]
[1752844064751,14.91489876,179.75,179.7,14.21489876]
[1752844065065,55.78,179.77,179.71,0.72]
[1752844065370,55.78,179.77,179.74,5.56359185]
[1752844065676,56.48,179.77,179.74,5.56359185]
[1752844065870,69.99489876,179.77,179.72,14.21489876]
[1752844066037,0.7,179.76,179.72,14.21489876]
[1752844066240,14.91489876,179.76,179.71,19.77941937]
[1752844066474,0.7,179.75,179.71,19.77941937]
[1752844066677,0.7,179.74,179.7,19.77967949]
[1752844067053,0.7,179.73,179.7,19.77967949]
[1752844067256,0.7,179.73,179.69,5.56513996]
[1752844067456,0.7,179.73,179.69,19.78003872]
[1752844067982,14.21489876,179.73,179.69,5.56513996]
[1752844068266,14.91489876,179.72,179.67,19.7804367]
[1752844068469,0.7,179.75,179.7,14.21489876]
[1752844068654,0.7,179.75,179.72,14.21489876]
[1752844068857,70.69489876,179.77,179.72,14.21489876]
[1752844069064,56.48,179.77,179.73,14.21489876]
[1752844069460,0.7,179.76,179.73,19.77861267]
[1752844069668,26.06,179.77,179.74,14.21489876]
[1752844069965,26.06,179.77,179.73,19.77861267]
[1752844070171,0.7,179.76,179.73,5.56371391]
[1752844070376,0.7,179.76,179.73,19.77861267]
[1752844070880,0.7,179.76,179.72,14.21489876]
[1752844071173,0.7,179.75,179.71,19.77933424]
[1752844071375,0.7,179.74,179.71,19.77933424]
[1752844072378,26.76,179.77,179.71,6.28443548]
[1752844072571,26.76,179.77,179.73,14.21489876]
[1752844072776,0.7,179.76,179.73,14.21489876]
[1752844073289,0.7,179.76,179.73,19.77862188]
[1752844075261,0.66,179.75,179.72,5.56417801]
[1752844075580,0.66,179.74,179.72,5.56417801]
[1752844076593,14.21489876,179.76,179.72,5.56417801]
[1752844076787,14.87489876,179.76,179.72,5.56417801]
[1752844076998,0.66,179.75,179.71,19.77932668]
[1752844078087,26.06,179.77,179.73,14.21489876]
[1752844078396,26.72,179.77,179.73,14.21489876]
[1752844079002,0.66,179.76,179.73,5.56375714]
[1752844079670,0.16,179.76,179.73,5.56375714]
[1752844079871,0.16,179.76,179.7,1.21648302]
[1752844079872,14.21489876,179.76,179.71,5.56428805]
[1752844080072,14.21489876,179.76,179.71,19.77918681]
[1752844080494,40.27489876,179.77,179.72,14.21489876]
[1752844080705,40.27489876,179.77,179.74,14.21489876]
[1752844080706,26.06,179.77,179.74,14.21489876]
[1752844080866,0.06,179.77,179.71,19.47558959]
[1752844081069,0.06,179.77,179.76,8.86063124]
[1752844081377,0.06,179.77,179.76,26.20161249]
[1752844081581,0.06,179.77,179.76,26.86161249]
[1752844083106,0.06,179.77,179.76,37.73536265]
[1752844083266,0.06,179.77,179.76,37.07536265]
[1752844083470,0.06,179.77,179.75,5.56318429]
[1752844083906,0.72,179.77,179.75,5.56318429]
[1752844084195,14.89140855,179.77,179.73,19.73525023]
[1752844084394,14.89140855,179.77,179.71,19.73592916]
[1752844084395,0.66,179.76,179.71,19.73592916]
[1752844084573,0.66,179.75,179.71,19.73592916]
[1752844084778,0.66,179.75,179.71,5.56452061]
[1752844084973,0.66,179.75,179.71,19.73592916]
[1752844085319,0.66,179.75,179.71,5.56452061]
[1752844085476,0.66,179.75,179.71,19.73592916]
[1752844085986,26.06,179.77,179.72,14.17140855]
[1752844086308,26.06,179.77,179.73,14.83140855]
[1752844086504,26.72,179.77,179.73,14.83140855]
[1752844086806,14.83140855,179.76,179.71,14.17140855]
[1752844086975,14.83140855,179.76,179.7,5.56483027]
[1752844086976,0.66,179.75,179.7,5.56483027]
[1752844087178,0.66,179.75,179.71,14.17140855]
[1752844087880,0.66,179.75,179.7,6.22483027]
[1752844088080,0.66,179.75,179.71,14.17140855]
[1752844088290,0.66,179.75,179.71,5.56422248]
[1752844088473,14.17140855,179.76,179.72,14.17140855]
[1752844088676,0.66,179.76,179.72,14.17140855]
[1752844089598,0.06,179.77,179.73,14.17140855]
[1752844089810,0.06,179.77,179.72,0.66]
[1752844089811,0.06,179.77,179.74,14.83140855]
[1752844090103,0.06,179.77,179.72,0.55642109]
[1752844090104,0.06,179.77,179.76,14.17140855]
[1752844090273,0.06,179.77,179.76,5.56297285]
[1752844090477,0.06,179.77,179.75,19.73460551]
[1752844090694,0.06,179.77,179.75,5.56319696]
[1752844090884,0.72,179.77,179.75,5.56319696]
[1752844091194,0.66,179.76,179.72,14.17140855]
[1752844091387,0.66,179.75,179.73,5.56382168]
[1752844092200,0.66,179.75,179.72,5.56410952]
[1752844093388,14.23140855,179.77,179.72,19.73551807]
[1752844093594,0.72,179.77,179.72,20.39551807]
[1752844093797,0.06,179.77,179.73,0.66]
[1752844094305,0.06,179.77,179.74,5.56359185]
[1752844094509,0.06,179.77,179.74,20.3950004]
[1752844095097,26.06,179.77,179.75,14.83140855]
[1752844095515,0.06,179.77,179.75,14.83140855]
[1752844096394,0.72,179.77,179.76,5.56297285]
[1752844097013,0.06,179.77,179.76,5.56297285]
[1752844097718,14.89140855,179.77,179.72,0.66]
[1752844097889,14.83140855,179.76,179.72,5.56421099]
[1752844098295,14.17140855,179.76,179.72,5.56421099]
[1752844098609,0.66,179.75,179.72,5.56421099]
[1752844099212,0.66,179.74,179.7,5.56455897]
[1752844099599,0.66,179.74,179.7,19.73596752]
[1752844100905,14.83140855,179.76,179.71,14.17140855]
[1752844101096,14.17140855,179.76,179.71,14.17140855]
[1752844101299,14.83140855,179.75,179.7,20.39596752]
[1752844101700,0.66,179.74,179.7,19.73596752]
[1752844101901,0.66,179.73,179.71,0.03]
[1752844102117,0.66,179.75,179.71,14.20140855]
[1752844102419,0.06,179.76,179.73,5.5639014]
[1752844102602,0.72,179.76,179.73,5.5639014]
[1752844103109,0.06,179.76,179.73,19.73530995]
[1752844103309,0.06,179.76,179.74,14.17140855]
[1752844103918,0.06,179.76,179.74,14.85140855]
[1752844104320,0.06,179.76,179.75,14.17140855]
[1752844104504,0.06,179.76,179.75,19.73469088]
[1752844104707,0.06,179.76,179.75,5.56328233]
[1752844105598,0.06,179.76,179.74,14.17140855]
[1752844105801,0.67,179.75,179.72,5.56421099]
[1752844106115,14.84140855,179.74,179.71,0.03]
[1752844106288,26.0,179.72,179.71,0.03]
[1752844106493,14.17140855,179.72,179.71,0.03]
[1752844106791,14.84140855,179.72,179.71,0.03]
[1752844107803,31.62609252,179.72,179.71,0.03]
[1752844108599,26.0,179.69,179.67,0.03]
[1752844108803,43.87140855,179.68,179.67,0.03]
[1752844109011,44.54140855,179.68,179.67,0.03]
[1752844109920,14.84140855,179.68,179.67,0.03]
[1752844110126,44.54140855,179.68,179.67,0.03]
[1752844110828,0.67,179.68,179.67,0.03]
[1752844111010,44.54140855,179.68,179.67,0.03]
[1752844111318,40.17140855,179.68,179.67,0.03]
[1752844111496,26.0,179.68,179.67,0.03]
[1752844112515,40.84140855,179.68,179.67,0.03]
[1752844113198,26.67,179.68,179.67,0.03]
[1752844113415,40.84140855,179.68,179.67,0.03]
[1752844113599,26.0,179.68,179.67,0.03]
[1752844115210,0.67,179.68,179.67,0.03]
[1752844117017,14.84140855,179.68,179.67,0.03]
[1752844117214,0.67,179.68,179.67,0.03]
[1752844118914,14.84140855,179.68,179.67,0.03]
[1752844119227,20.40685823,179.68,179.67,0.03]
[1752844119430,14.84140855,179.68,179.67,0.03]
[1752844119814,20.40685823,179.68,179.67,0.03]
[1752844120417,6.23544968,179.68,179.67,0.03]
[1752844120616,20.40685823,179.68,179.67,0.03]
[1752844120813,14.84140855,179.68,179.67,0.03]
[1752844121034,20.40685823,179.68,179.67,0.03]
[1752844121225,14.84140855,179.68,179.67,0.03]
[1752844121425,61.2652216,179.69,179.67,0.03]
[1752844121426,26.0,179.69,179.67,0.03]
[1752844121614,26.0,179.69,179.67,14.20140855]
[1752844121816,26.0,179.69,179.67,14.88140855]
[1752844122042,26.0,179.69,179.67,0.71]
[1752844122239,26.0,179.69,179.67,0.03]
[1752844122422,40.17140855,179.69,179.67,0.03]
[1752844122626,0.67,179.68,179.67,0.03]
[1752844122940,26.0,179.69,179.67,19.76716799]
[1752844123137,29.7,179.71,179.68,14.17140855]
[1752844123440,29.7,179.71,179.68,14.85140855]
[1752844123813,26.0,179.72,179.69,14.17140855]
[1752844124020,0.06,179.75,179.71,14.17140855]
[1752844124233,0.06,179.75,179.72,14.85140855]
[1752844124234,29.68,179.74,179.72,14.85140855]
[1752844124422,29.68,179.74,179.67,20.06673399]
[1752844124423,26.0,179.73,179.7,0.68]
[1752844124618,26.0,179.73,179.71,14.17140855]
[1752844124837,26.0,179.73,179.71,0.68]
[1752844125044,26.0,179.72,179.69,19.73632066]
[1752844125743,26.67,179.72,179.68,19.73680531]
[1752844126945,26.0,179.72,179.69,14.17140855]
[1752844127523,26.0,179.72,179.69,19.7365019]
[1752844128141,26.0,179.72,179.7,14.85140855]
[1752844128520,26.0,179.73,179.7,14.85140855]